bitfinex/quotes_BTCUSD_20250119
["timestamp","ask_amount","ask_price","bid_price","bid_amount"]
[1737323901147,0.31383349,103820.0,103810.0,0.00057834]
[1737323901370,0.21383349,103820.0,103810.0,0.00057834]
[1737323901599,0.45834698,103820.0,103810.0,0.00057834]
[1737323902414,0.65834698,103820.0,103810.0,0.00057834]
[1737323903272,0.56383349,103820.0,103810.0,0.00057834]
[1737323903463,0.81383349,103820.0,103810.0,0.00057834]
[1737323903736,0.71383349,103820.0,103810.0,0.00057834]
[1737323903884,0.66383349,103820.0,103810.0,0.00057834]
[1737323904271,0.46383349,103820.0,103810.0,0.00057834]
[1737323904474,0.11323349,103820.0,103810.0,0.00057834]
[1737323904650,0.00120424,103820.0,103810.0,0.37240734]
[1737323904967,0.02024441,103830.0,103820.0,0.09632]
[1737323905159,0.01872,103860.0,103830.0,0.192606]
[1737323905375,0.1144372,103860.0,103840.0,0.28889]
[1737323905577,0.1144372,103860.0,103850.0,0.174792]
[1737323905755,0.11323349,103860.0,103850.0,0.174792]
[1737323905957,0.09244,103880.0,103860.0,0.096281]
[1737323906102,0.30314205,103880.0,103860.0,0.096281]
[1737323906295,0.20687705,103880.0,103860.0,0.288847]
[1737323906690,0.20687705,103880.0,103860.0,0.096281]
[1737323906922,0.18865769,103880.0,103870.0,0.096274]
[1737323907164,0.11166064,103880.0,103870.0,0.096274]
[1737323908975,0.11166064,103880.0,103870.0,0.0967023]
[1737323910452,0.13466064,103880.0,103870.0,0.0967023]
[1737323910650,0.09294064,103880.0,103870.0,0.0967023]
[1737323910858,0.09294064,103880.0,103870.0,0.2467023]
[1737323911107,0.00050064,103880.0,103870.0,0.2467023]
[1737323912193,0.00050064,103880.0,103870.0,0.0967023]
[1737323912379,0.02350064,103880.0,103870.0,0.0967023]
[1737323912782,0.11801413,103880.0,103870.0,0.0004283]
[1737323913097,0.68591551,103880.0,103870.0,0.0004283]
[1737323913258,0.31801413,103880.0,103870.0,0.0004283]
[1737323913843,0.31801413,103880.0,103870.0,0.0967023]
[1737323913844,0.22350064,103880.0,103870.0,0.0967023]
[1737323913984,0.20050064,103880.0,103870.0,0.09614386]
[1737323914194,0.00050064,103880.0,103870.0,0.09614386]
[1737323914693,0.11801413,103880.0,103860.0,0.481379]
[1737323914865,0.0012035,103870.0,103860.0,0.288827]
[1737323915066,0.11921765,103880.0,103870.0,0.096274]
[1737323915611,0.00050064,103880.0,103870.0,0.096274]
[1737323915962,0.11801413,103880.0,103860.0,0.631381]
[1737323916158,0.02420348,103870.0,103860.0,0.096277]
[1737323916477,0.11751349,103870.0,103850.0,0.606927]
[1737323916694,0.11751349,103870.0,103860.0,0.096283]
[1737323917260,0.09451349,103870.0,103860.0,0.192552]
[1737323917503,0.09451349,103870.0,103860.0,0.288831]
[1737323917752,0.11751349,103870.0,103860.0,0.288831]
[1737323918092,0.00170421,103880.0,103870.0,0.096274]
[1737323918405,0.1192177,103880.0,103870.0,0.096274]
[1737323918970,0.023,103870.0,103860.0,0.288828]
[1737323919122,0.11751349,103870.0,103860.0,0.096277]
[1737323919329,0.11751349,103870.0,103850.0,0.510642]
[1737323919523,0.11751349,103870.0,103860.0,0.096283]
[1737323919794,0.11751349,103870.0,103850.0,0.510642]
[1737323920014,0.11751349,103870.0,103860.0,0.096283]
[1737323920695,0.21378749,103870.0,103850.0,0.414358]
[1737323920928,0.11751349,103860.0,103850.0,0.221792]
[1737323921351,0.11751349,103860.0,103850.0,0.0785]
[1737323921578,0.023,103850.0,103840.0,0.288886]
[1737323921809,0.11871728,103850.0,103840.0,0.288886]
[1737323922842,0.11751349,103850.0,103840.0,0.288886]
[1737323924303,0.11751349,103850.0,103840.0,0.096296]
[1737323924454,0.11751349,103850.0,103840.0,0.096302]
[1737323924818,0.21501331,103850.0,103830.0,0.415916]
[1737323925017,0.11871731,103850.0,103840.0,0.096302]
[1737323925427,0.32382077,103850.0,103830.0,0.127]
[1737323925628,0.21501943,103840.0,103830.0,0.0772]
[1737323925830,0.21381549,103840.0,103830.0,0.0772]
[1737323926045,0.023,103830.0,103820.0,0.0004286]
[1737323926283,0.23194449,103830.0,103820.0,0.0004286]
[1737323926842,0.29366024,103830.0,103820.0,0.00057904]
[1737323927244,0.23194449,103830.0,103820.0,0.00057904]
[1737323927481,0.48194449,103830.0,103820.0,0.00057904]
[1737323927683,0.63194449,103830.0,103820.0,0.00057904]
[1737323928974,0.096339,103800.0,103790.0,0.0163901]
[1737323929175,0.21385249,103800.0,103790.0,0.01654055]
[1737323929921,0.46385249,103800.0,103790.0,0.01654055]
[1737323930143,0.396348,103790.0,103780.0,0.0004279]
[1737323930343,0.46386149,103790.0,103780.0,0.00057846]
[1737323930559,0.246357,103780.0,103770.0,0.00015056]
[1737323930760,0.246357,103780.0,103710.0,0.1004284]
[1737323930761,0.15,103750.0,103710.0,0.1004284]
[1737323930963,0.15,103750.0,103720.0,0.38374649]
[1737323930964,0.01756,103740.0,103720.0,0.38374649]
[1737323931164,0.210351,103740.0,103710.0,0.29019224]
[1737323931399,0.09451349,103750.0,103720.0,0.240808]
[1737323931521,0.11207349,103750.0,103740.0,0.096394]
[1737323931948,0.01756,103750.0,103740.0,0.12624793]
[1737323932123,0.01756,103750.0,103740.0,0.096394]
[1737323932325,0.096396,103740.0,103720.0,0.148]
[1737323932688,0.113949,103750.0,103720.0,0.43174649]
[1737323933010,0.09451349,103740.0,103720.0,0.337237]
[1737323933216,0.19091149,103740.0,103720.0,0.048]
[1737323933344,0.38370549,103740.0,103720.0,0.048]
[1737323933576,0.09451349,103730.0,103720.0,0.048]
[1737323933938,0.19091749,103730.0,103720.0,0.048]
[1737323934137,0.096413,103720.0,103710.0,0.00093024]
[1737323934333,0.19092649,103720.0,103710.0,0.03076112]
[1737323934529,0.19092649,103720.0,103710.0,0.00093024]
[1737323934818,0.35848649,103720.0,103710.0,0.00093024]
[1737323935068,0.45848649,103720.0,103710.0,0.00093024]
[1737323935271,0.72599998,103720.0,103710.0,0.00093024]
[1737323935442,0.45299998,103720.0,103710.0,0.00093024]
[1737323935781,0.45299998,103720.0,103680.0,0.0324585]
[1737323935782,0.4,103710.0,103680.0,0.0324585]
[1737323935983,0.44095449,103690.0,103680.0,0.0622561]
[1737323936186,0.53347449,103690.0,103680.0,0.0324585]
[1737323936404,0.18703349,103690.0,103680.0,0.0324585]
[1737323936608,0.20459349,103690.0,103680.0,0.06225125]
[1737323936812,0.30103449,103690.0,103680.0,0.06225125]
[1737323937232,0.45103449,103690.0,103680.0,0.06225125]
[1737323937435,0.30103449,103690.0,103680.0,0.06225125]
[1737323937638,0.55103449,103690.0,103680.0,0.06225125]
[1737323937812,0.48960849,103690.0,103680.0,0.06225125]
[1737323938043,0.33790849,103690.0,103680.0,0.06225125]
[1737323938247,0.40440291,103690.0,103680.0,0.06225125]
[1737323938452,0.65440291,103690.0,103680.0,0.06225125]
[1737323938871,0.58790849,103690.0,103680.0,0.06225125]
[1737323939231,0.78790849,103690.0,103680.0,0.06225125]
[1737323939638,0.78790849,103690.0,103680.0,0.0324585]
[1737323939794,0.78790849,103690.0,103680.0,0.0274585]
[1737323940044,0.88021123,103690.0,103680.0,0.05720627]
[1737323940243,0.95721123,103690.0,103680.0,0.05720627]
[1737323940549,0.98021123,103690.0,103680.0,0.0274585]
[1737323940759,0.55721123,103690.0,103680.0,0.0274585]
[1737323940984,0.46081023,103690.0,103680.0,0.0274585]
[1737323941209,0.13138749,103690.0,103680.0,0.15363809]
[1737323941367,0.14898749,103690.0,103680.0,0.15363809]
[1737323941972,0.0176,103690.0,103680.0,0.34652809]
[1737323943047,0.0176,103690.0,103680.0,0.39452809]
[1737323943558,0.29305999,103720.0,103700.0,0.289286]
[1737323943833,0.29305999,103720.0,103710.0,0.096422]
[1737323943834,0.31448234,103720.0,103710.0,0.096422]
[1737323944041,0.29501348,103720.0,103710.0,0.24995159]
[1737323944259,0.00049999,103720.0,103710.0,0.24995159]
[1737323944517,0.00049999,103720.0,103710.0,0.49446508]
[1737323944705,0.49112762,103750.0,103740.0,0.096394]
[1737323944935,0.11211349,103750.0,103730.0,0.096399]
[1737323945123,0.210522,103750.0,103710.0,0.41115449]
[1737323945264,0.2,103740.0,103730.0,0.096401]
[1737323945461,0.21893187,103740.0,103730.0,0.096401]
[1737323945672,0.24260006,103740.0,103720.0,0.289218]
[1737323945957,0.24260006,103740.0,103720.0,0.12615649]
[1737323945958,0.31532887,103740.0,103720.0,0.12615649]
[1737323946159,0.01893187,103740.0,103720.0,0.22257549]
[1737323946400,0.20984036,103740.0,103720.0,0.12616049]
[1737323946533,0.096404,103730.0,103720.0,0.02974949]
[1737323946733,0.15,103730.0,103720.0,0.01602873]
[1737323946972,0.34091749,103730.0,103720.0,0.01101974]
[1737323947166,0.096414,103720.0,103700.0,0.096431]
[1737323947325,0.43735549,103720.0,103700.0,0.02965939]
[1737323947523,0.38378649,103710.0,103700.0,0.02965939]
[1737323947724,0.48021949,103710.0,103690.0,0.28920046]
[1737323947925,0.38378349,103710.0,103690.0,0.41517822]
[1737323948149,0.096432,103700.0,103690.0,0.31873722]
[1737323948366,0.09451349,103710.0,103700.0,0.096432]
[1737323948629,0.09451349,103710.0,103700.0,0.12596876]
[1737323948842,0.00014989,103710.0,103700.0,0.12596876]
[1737323949371,0.00014989,103710.0,103700.0,0.26848225]
[1737323949572,0.00014989,103710.0,103700.0,0.41848225]
[1737323949774,0.0027933,103720.0,103700.0,0.42205025]
[1737323950051,0.0027933,103720.0,103710.0,0.19093549]
[1737323950260,0.0027933,103720.0,103710.0,0.22047225]
[1737323950667,0.0027933,103720.0,103710.0,0.12595876]
[1737323952497,0.0027933,103720.0,103710.0,0.02953676]
[1737323952899,0.38655979,103720.0,103710.0,0.02953676]
[1737323953105,0.096422,103710.0,103700.0,0.1154452]
[1737323953372,0.19093549,103710.0,103700.0,0.1154452]
[1737323953770,0.01030017,103710.0,103700.0,0.1154452]
[1737323954007,0.96853648,103720.0,103700.0,0.12651302]
[1737323954008,0.2992073,103720.0,103700.0,0.12651302]
[1737323954215,0.79093549,103710.0,103700.0,0.03008502]
[1737323954422,0.79093549,103710.0,103690.0,0.38653186]
[1737323954423,0.096432,103700.0,103690.0,0.38653186]
[1737323954635,0.29501533,103710.0,103700.0,0.096432]
[1737323954840,0.20050184,103710.0,103700.0,0.12456406]
[1737323955260,0.00050184,103710.0,103700.0,0.21907755]
[1737323955893,0.00050184,103710.0,103700.0,0.12456406]
[1737323957239,0.00050184,103710.0,103700.0,0.02813206]
[1737323957607,0.00050184,103710.0,103700.0,0.12456406]
[1737323957900,0.00050184,103710.0,103700.0,0.02813206]
[1737323958109,0.09501533,103710.0,103700.0,0.02813206]
[1737323958282,0.00050184,103710.0,103700.0,0.12456406]
[1737323958504,0.00140296,103710.0,103700.0,0.12456406]
[1737323958857,0.00140296,103710.0,103700.0,0.02813206]
[1737323959165,0.00140296,103710.0,103700.0,0.12456406]
[1737323959871,0.00140296,103710.0,103700.0,0.02813206]
[1737323960273,0.19233845,103710.0,103700.0,0.02813206]
[1737323960698,0.09451349,103710.0,103700.0,0.02813206]
[1737323960906,0.1,103700.0,103690.0,0.02048741]
[1737323961109,0.28948485,103700.0,103690.0,2.02048741]
[1737323961269,0.28948485,103700.0,103690.0,2.00241103]
[1737323961924,0.28948485,103700.0,103690.0,2.0301426]
[1737323962124,0.2,103700.0,103690.0,2.00241103]
[1737323962297,0.2,103700.0,103690.0,2.09885203]
[1737323962499,0.1975,103700.0,103690.0,2.00241103]
[1737323962759,0.1975,103700.0,103690.0,2.09885203]
[1737323962968,0.1975,103700.0,103690.0,2.10031267]
[1737323963101,0.0027933,103720.0,103710.0,0.096422]
[1737323963559,0.09730679,103720.0,103700.0,0.096425]
[1737323963733,0.0027933,103720.0,103710.0,0.096422]
[1737323964494,0.0027933,103720.0,103710.0,0.09788264]
[1737323965117,0.0027933,103720.0,103710.0,0.29080965]
[1737323965337,0.0027933,103720.0,103710.0,0.61630965]
[1737323965537,0.0027933,103720.0,103710.0,0.51630965]
[1737323965682,0.0027933,103720.0,103710.0,0.36630965]
[1737323966359,0.0027933,103720.0,103710.0,0.51630965]
[1737323967270,0.0027933,103720.0,103710.0,0.36630965]
[1737323967888,0.0027933,103720.0,103710.0,0.90304623]
[1737323968096,0.2,103750.0,103740.0,0.12085464]
[1737323968274,0.188969,103770.0,103750.0,0.48337764]
[1737323968495,0.188969,103770.0,103720.0,0.292816]
[1737323968496,0.192783,103750.0,103720.0,0.29069464]
[1737323968716,0.57646649,103750.0,103720.0,0.51123342]
[1737323968869,0.57647049,103750.0,103720.0,0.29069264]
[1737323969069,0.19090449,103750.0,103730.0,0.096403]
[1737323969278,0.38369849,103740.0,103720.0,0.29068564]
[1737323969675,0.489172,103750.0,103730.0,0.096401]
[1737323969886,0.39090349,103750.0,103730.0,0.096401]
[1737323970146,0.38186461,103770.0,103750.0,0.09638]
[1737323970466,0.6691281,103770.0,103750.0,0.09638]
[1737323970675,0.4763821,103770.0,103750.0,0.09638]
[1737323970881,0.09275061,103770.0,103760.0,0.096376]
[1737323971106,0.09275061,103770.0,103760.0,0.14854839]
[1737323971349,0.00015061,103770.0,103760.0,0.12083664]
[1737323971557,0.00015061,103770.0,103760.0,0.21535013]
[1737323974172,0.296358,103780.0,103760.0,0.33777064]
[1737323974415,0.296358,103780.0,103760.0,0.33777164]
[1737323974608,0.2,103780.0,103770.0,0.096366]
[1737323975281,0.096345,103800.0,103780.0,0.096354]
[1737323975490,0.20015053,103810.0,103800.0,0.096339]
[1737323976060,0.20015053,103810.0,103800.0,0.00146064]
[1737323976278,0.00015053,103810.0,103800.0,0.09779964]
[1737323976462,0.28733702,103810.0,103790.0,0.0797]
[1737323976661,0.57634202,103810.0,103790.0,0.176045]
[1737323976817,0.57634102,103810.0,103790.0,0.368741]
[1737323977027,0.57634102,103810.0,103790.0,0.56289764]
[1737323977028,0.09648453,103810.0,103790.0,0.56289764]
[1737323977227,0.19282153,103810.0,103790.0,0.0797]
[1737323977429,0.192678,103800.0,103770.0,0.08116064]
[1737323977627,0.192678,103800.0,103770.0,0.00146064]
[1737323977628,0.096359,103780.0,103770.0,0.00146064]
[1737323977838,0.096359,103780.0,103760.0,0.14502964]
[1737323978037,0.38357549,103790.0,103760.0,0.24139964]
[1737323978241,0.38357549,103790.0,103770.0,0.096366]
[1737323978438,0.096366,103770.0,103760.0,0.0472]
[1737323978671,0.28725849,103770.0,103750.0,0.176082]
[1737323978869,0.19088049,103770.0,103750.0,0.37031264]
[1737323979427,0.385458,103780.0,103750.0,0.27393064]
[1737323979643,0.385415,103790.0,103760.0,0.29058264]
[1737323979854,0.289078,103780.0,103760.0,0.29058264]
[1737323980026,0.38355849,103790.0,103770.0,0.00146064]
[1737323980294,0.39086249,103790.0,103770.0,0.29055664]
[1737323980486,0.2,103790.0,103780.0,0.09781764]
[1737323980779,0.2,103790.0,103780.0,0.16801764]
[1737323981211,0.681675,103810.0,103790.0,0.096346]
[1737323981414,0.096348,103790.0,103780.0,0.0472]
[1737323981618,0.58351349,103810.0,103790.0,0.096347]
[1737323981805,0.58351049,103810.0,103790.0,0.096343]
[1737323982007,0.39084549,103810.0,103790.0,0.29049964]
[1737323982136,0.2,103810.0,103800.0,0.096339]
[1737323982343,0.20015053,103810.0,103800.0,0.09779964]
[1737323982995,0.09634,103800.0,103780.0,0.43408164]
[1737323983151,0.20015053,103810.0,103790.0,0.00146064]
[1737323983356,0.20015053,103810.0,103800.0,0.096339]
[1737323984252,0.00015053,103810.0,103800.0,0.09779964]
[1737323984454,0.00015053,103810.0,103800.0,0.12079964]
[1737323984665,0.00015053,103810.0,103800.0,0.21531313]
[1737323985283,0.00015053,103810.0,103800.0,0.12079964]
[1737323985490,0.00015053,103810.0,103800.0,0.09779964]
[1737323985761,0.09647953,103810.0,103790.0,0.29048264]
[1737323985956,0.096345,103800.0,103780.0,0.22471664]
[1737323986169,0.58365802,103810.0,103790.0,0.096348]
[1737323986386,0.58365802,103810.0,103790.0,0.29050464]
[1737323986594,0.29466402,103810.0,103800.0,0.096339]
[1737323986796,0.39099302,103810.0,103790.0,0.48318164]
[1737323987216,0.09634,103800.0,103780.0,0.41741064]
[1737323987423,0.289018,103800.0,103780.0,0.41741064]
[1737323987657,0.481713,103800.0,103780.0,0.22471164]
[1737323988066,0.289022,103800.0,103780.0,0.09781164]
[1737323988268,0.2,103800.0,103790.0,0.096348]
[1737323988441,0.2,103800.0,103790.0,0.09780864]
[1737323988688,0.2,103800.0,103790.0,0.12550238]
[1737323988863,0.2,103800.0,103790.0,0.09780864]
[1737323989060,0.296339,103800.0,103780.0,0.29051364]
[1737323989221,0.47988749,103800.0,103780.0,0.00146064]
[1737323989423,0.38353949,103800.0,103790.0,0.38715788]
[1737323989745,0.57623249,103800.0,103780.0,0.29053064]
[1737323989963,0.096348,103790.0,103780.0,0.12403343]
[1737323990201,0.77623049,103800.0,103780.0,0.12403343]
[1737323990365,0.19086149,103790.0,103780.0,0.02767643]
[1737323990750,0.28908,103780.0,103760.0,0.58145924]
[1737323990923,0.096366,103770.0,103760.0,0.31855145]
[1737323991153,0.19087949,103770.0,103760.0,0.31855145]
[1737323991361,0.49087949,103770.0,103760.0,0.09536722]
[1737323991564,0.49087949,103770.0,103750.0,0.46703853]
[1737323991565,0.246376,103760.0,103750.0,0.25899177]
[1737323991736,0.09853936,103750.0,103740.0,0.38178438]
[1737323991969,0.396413,103720.0,103710.0,0.46660973]
[1737323992168,0.58344649,103720.0,103710.0,0.46660973]
[1737323992370,0.19496136,103710.0,103700.0,0.2590446]
[1737323992662,0.09451349,103710.0,103700.0,0.3554766]
[1737323992860,0.09451349,103710.0,103700.0,0.25919521]
[1737323992861,0.34093549,103710.0,103700.0,0.25919521]
[1737323993033,0.49093549,103710.0,103700.0,0.25919521]
[1737323993279,0.44853936,103710.0,103700.0,0.02825701]
[1737323993479,0.44853936,103710.0,103690.0,2.00241103]
[1737323993480,0.63947485,103710.0,103690.0,2.00241103]
[1737323993692,0.63947485,103710.0,103690.0,2.00291287]
[1737323993693,0.19094549,103700.0,103690.0,2.00291287]
[1737323993900,0.096432,103700.0,103690.0,2.03059578]
[1737323994322,0.096432,103700.0,103690.0,2.00291287]
[1737323994883,0.096432,103700.0,103690.0,2.03095448]
[1737323995084,0.096432,103700.0,103690.0,2.00334167]
[1737323996019,0.096432,103700.0,103690.0,2.03094185]
[1737323996162,0.296432,103700.0,103690.0,2.00334167]
[1737323996787,0.54094549,103700.0,103690.0,2.00334167]
[1737323998015,0.78948485,103700.0,103690.0,2.00334167]
[1737323998704,0.54094549,103700.0,103690.0,2.00334167]
[1737323999014,0.63545898,103700.0,103690.0,1.71362611]
[1737323999975,0.73399834,103700.0,103690.0,1.71362611]
[1737324000170,0.63545898,103700.0,103690.0,1.71362611]
[1737324000582,1.17495898,103700.0,103690.0,1.28442008]
[1737324000784,1.17495898,103700.0,103690.0,1.27176383]
[1737324001432,1.88418863,103700.0,103690.0,0.78665713]
[1737324001645,1.34468863,103700.0,103690.0,0.25007141]
[1737324001848,1.34468863,103700.0,103690.0,0.01215838]
[1737324002056,0.246441,103690.0,103680.0,0.0274585]
[1737324002266,0.49500836,103660.0,103650.0,0.0011286]
[1737324002479,0.58952185,103660.0,103650.0,0.0011286]
[1737324003380,0.78952185,103660.0,103650.0,0.0011286]
[1737324003660,0.79002308,103660.0,103650.0,0.0011286]
[1737324003961,0.39148372,103660.0,103650.0,0.0011286]
[1737324004116,0.00050123,103660.0,103650.0,0.09906724]
[1737324004321,0.00050123,103660.0,103650.0,0.17636724]
[1737324004521,0.00050123,103660.0,103650.0,0.27088073]
[1737324004867,0.00050123,103660.0,103650.0,0.0784286]
[1737324005093,0.00050123,103660.0,103650.0,0.17636724]
[1737324006345,0.00050123,103660.0,103650.0,0.0784286]
[1737324006346,0.09697023,103660.0,103650.0,0.0784286]
[1737324006490,0.22047274,103660.0,103650.0,0.0011286]
[1737324007101,0.19148372,103660.0,103650.0,0.0011286]
[1737324007301,0.39148372,103660.0,103650.0,0.0011286]
[1737324007702,0.39148372,103660.0,103650.0,0.0976066]
[1737324007703,0.20050123,103660.0,103650.0,0.0976066]
[1737324008022,0.20050123,103660.0,103650.0,0.09906724]
[1737324008198,0.20050123,103660.0,103650.0,0.0011286]
[1737324008199,0.19148372,103660.0,103650.0,0.0011286]
[1737324008409,0.00050123,103660.0,103650.0,0.09906724]
[1737324009230,0.19148372,103660.0,103650.0,0.0011286]
[1737324009683,0.29002308,103660.0,103650.0,0.0011286]
[1737324010027,0.59002308,103660.0,103650.0,0.0011286]
[1737324010256,0.64002308,103660.0,103650.0,0.0011286]
[1737324010565,0.63599721,103660.0,103650.0,0.0011286]
[1737324011268,0.69148372,103660.0,103650.0,0.0011286]
[1737324011495,0.64002308,103660.0,103650.0,0.0011286]
[1737324011711,0.69148372,103660.0,103650.0,0.0011286]
[1737324011886,0.64002308,103660.0,103650.0,0.0011286]
[1737324012068,0.54148372,103660.0,103650.0,0.0011286]
[1737324012433,0.29501472,103660.0,103650.0,0.0011286]
[1737324012646,0.41020372,103660.0,103650.0,0.0011286]
[1737324013089,0.56020372,103660.0,103650.0,0.0011286]
[1737324013295,0.41020372,103660.0,103650.0,0.0011286]
[1737324013506,0.096482,103650.0,103630.0,0.35895637]
[1737324013753,0.192959,103650.0,103630.0,0.16597437]
[1737324013902,0.482416,103650.0,103630.0,0.06948537]
[1737324014111,0.482416,103650.0,103630.0,0.16597937]
[1737324014112,0.2,103640.0,103630.0,0.16597937]
[1737324015075,0.2,103640.0,103620.0,0.57925]
[1737324015280,0.096497,103630.0,103620.0,0.00025]
[1737324015454,0.38398149,103640.0,103620.0,0.28951]
[1737324015712,0.19100649,103640.0,103630.0,0.096497]
[1737324015921,0.585935,103650.0,103620.0,0.35218436]
[1737324016126,0.501162,103640.0,103620.0,0.25568236]
[1737324016558,0.308186,103640.0,103620.0,0.25568236]
[1737324016934,0.501172,103640.0,103620.0,0.289511]
[1737324017160,0.701172,103640.0,103620.0,0.096499]
[1737324017339,0.289496,103630.0,103610.0,0.336528]
[1737324017480,0.096506,103620.0,103610.0,0.047]
[1737324017686,0.57701949,103630.0,103610.0,0.33602977]
[1737324017899,0.38401049,103630.0,103610.0,0.33787275]
[1737324018111,0.77701949,103630.0,103610.0,0.33787275]
[1737324018320,0.77701949,103630.0,103610.0,0.14484175]
[1737324018530,0.97002849,103630.0,103610.0,0.14484175]
[1737324018725,0.58451141,103630.0,103620.0,0.0004279]
[1737324019180,0.58451141,103630.0,103620.0,0.00238158]
[1737324019379,0.096506,103620.0,103610.0,0.03886835]
[1737324019540,0.096515,103610.0,103600.0,0.10181]
[1737324019737,0.09772161,103610.0,103600.0,0.10181]
[1737324020436,0.09772161,103610.0,103600.0,0.02051]
[1737324020802,0.09772161,103610.0,103600.0,0.02232426]
[1737324021059,0.1922351,103610.0,103600.0,0.02051]
[1737324021824,0.4422351,103610.0,103600.0,0.02051]
[1737324022033,0.096525,103600.0,103590.0,0.0002]
[1737324022204,0.19103849,103600.0,103590.0,0.0002]
[1737324022609,0.29103849,103600.0,103590.0,0.0002]
[1737324022842,0.396534,103590.0,103580.0,0.06537124]
[1737324023086,0.53368749,103590.0,103580.0,0.06537124]
[1737324023305,0.396543,103580.0,103570.0,0.0016817]
[1737324023531,0.34105649,103580.0,103570.0,0.0016817]
[1737324023686,0.44105649,103580.0,103570.0,0.0016817]
[1737324023891,0.43556998,103580.0,103570.0,0.0016817]
[1737324024088,0.53607059,103580.0,103570.0,0.0016817]
[1737324024460,1.1415571,103580.0,103570.0,0.0016817]
[1737324024663,1.0415571,103580.0,103570.0,0.0016817]
[1737324024862,1.1529571,103580.0,103570.0,0.0016817]
[1737324025109,0.8029571,103580.0,103570.0,0.0016817]
[1737324025770,0.9029571,103580.0,103570.0,0.0016817]
[1737324025982,0.8029571,103580.0,103570.0,0.0016817]
[1737324026835,0.6529571,103580.0,103570.0,0.0016817]
[1737324027044,0.5029571,103580.0,103570.0,0.0016817]
[1737324027240,0.4064141,103580.0,103570.0,0.0982347]
[1737324027442,0.29318061,103580.0,103570.0,0.0982347]
[1737324027656,0.31190061,103580.0,103570.0,0.0982347]
[1737324027861,0.20050061,103580.0,103570.0,0.1464347]
[1737324028066,0.21922061,103580.0,103570.0,0.1464347]
[1737324028268,0.01922061,103580.0,103570.0,0.1464347]
[1737324028476,0.00050061,103580.0,103570.0,0.1464347]
[1737324028681,0.00050061,103580.0,103570.0,0.3774347]
[1737324028885,0.00050061,103580.0,103570.0,0.32194819]
[1737324029101,0.00050061,103580.0,103570.0,0.42194819]
[1737324029313,0.00050061,103580.0,103570.0,0.32194819]
[1737324029702,0.09704361,103580.0,103570.0,0.17719519]
[1737324029903,0.00050061,103580.0,103570.0,0.1796628]
[1737324030087,0.09704361,103580.0,103570.0,0.0021098]
[1737324030390,0.6915571,103580.0,103570.0,0.0021098]
[1737324030805,0.2950141,103580.0,103570.0,0.0021098]
[1737324031333,0.2950141,103580.0,103570.0,0.0986628]
[1737324031522,0.20050061,103580.0,103570.0,0.0986628]
[1737324032087,0.00050061,103580.0,103570.0,0.0986628]
[1737324032742,0.00050061,103580.0,103570.0,0.56987629]
[1737324032975,0.2,103590.0,103580.0,0.246543]
[1737324033174,0.29272,103630.0,103620.0,0.096506]
[1737324033511,0.389221,103630.0,103610.0,0.28953]
[1737324033716,0.096508,103620.0,103590.0,0.242267]
[1737324033960,0.289549,103610.0,103590.0,0.26787094]
[1737324034132,0.2082237,103620.0,103590.0,0.0492]
[1737324034346,0.096534,103590.0,103580.0,0.0775]
[1737324034547,0.096534,103590.0,103580.0,0.17216338]
[1737324034790,0.096534,103590.0,103580.0,0.07764989]
[1737324034991,0.49104749,103590.0,103580.0,0.00014989]
[1737324035199,0.1571,103580.0,103540.0,0.00047036]
[1737324035408,0.1571,103580.0,103550.0,0.096566]
[1737324035409,0.38416849,103580.0,103550.0,0.096566]
[1737324035610,0.19451349,103570.0,103560.0,0.289678]
[1737324035809,0.29106849,103570.0,103550.0,0.289693]
[1737324036021,0.09451349,103570.0,103560.0,0.096562]
[1737324036230,0.19102649,103570.0,103560.0,0.02764526]
[1737324036390,0.096553,103570.0,103550.0,0.17341664]
[1737324036590,0.289659,103570.0,103550.0,0.36655918]
[1737324036969,0.343106,103570.0,103540.0,0.00047036]
[1737324037175,0.296571,103550.0,103540.0,0.00047036]
[1737324037617,0.29451349,103550.0,103540.0,0.09705136]
[1737324037790,0.29451349,103550.0,103540.0,0.00047036]
[1737324037997,0.29451349,103550.0,103540.0,0.09705136]
[1737324038196,0.29451349,103550.0,103540.0,0.00047036]
[1737324038420,0.20015,103550.0,103540.0,0.09705136]
[1737324038823,0.20015,103550.0,103540.0,0.12467785]
[1737324038979,0.296721,103550.0,103540.0,0.02809685]
[1737324039179,0.20015,103550.0,103540.0,0.09705136]
[1737324039381,0.3457053,103550.0,103540.0,0.00047036]
[1737324039633,0.20015,103550.0,103540.0,0.09705136]
[1737324039804,0.20015,103550.0,103540.0,0.12470814]
[1737324040209,0.00015,103550.0,103540.0,0.21922163]
[1737324040389,0.00015,103550.0,103540.0,0.26842163]
[1737324040843,0.00015,103550.0,103540.0,0.36842163]
[1737324041048,0.00015,103550.0,103540.0,0.59592163]
[1737324041249,0.00015,103550.0,103540.0,0.49592163]
[1737324043122,0.00015,103550.0,103540.0,0.34592163]
[1737324043325,0.00015,103550.0,103540.0,0.25140814]
[1737324043534,0.00015,103550.0,103540.0,0.22375136]
[1737324043759,0.096721,103550.0,103540.0,0.00047036]
[1737324043964,0.0491349,103550.0,103540.0,0.00047036]
[1737324044169,0.29466349,103550.0,103540.0,0.00047036]
[1737324044371,0.20015,103550.0,103540.0,0.09705136]
[1737324045176,0.00015,103550.0,103540.0,0.09705136]
[1737324045524,0.00015,103550.0,103540.0,0.24076485]
[1737324045878,0.00015,103550.0,103540.0,0.59593403]
[1737324046304,0.00015,103550.0,103540.0,0.49593403]
[1737324046518,0.00015,103550.0,103540.0,0.31826485]
[1737324046736,0.00015,103550.0,103540.0,0.22375136]
[1737324047168,0.20015,103550.0,103540.0,0.31826485]
[1737324047378,0.29466349,103550.0,103530.0,0.0002]
[1737324047605,0.09451349,103540.0,103530.0,0.0002]
[1737324047839,0.20015,103550.0,103530.0,0.289959]
[1737324048094,0.29466349,103550.0,103530.0,0.28995]
[1737324048316,0.20015,103550.0,103540.0,0.096581]
[1737324048867,0.220165,103550.0,103530.0,0.464033]
[1737324049069,0.2,103540.0,103530.0,0.367449]
[1737324049273,0.2,103540.0,103530.0,0.174283]
[1737324049791,0.29451349,103540.0,103530.0,0.0002]
[1737324050009,0.2,103540.0,103530.0,0.09679]
[1737324050467,0.39109449,103540.0,103530.0,0.0002]
[1737324050698,0.29451349,103540.0,103530.0,0.0002]
[1737324050930,0.39109449,103540.0,103530.0,0.0002]
[1737324051156,0.29451349,103540.0,103530.0,0.0002]
[1737324051635,0.38726664,103540.0,103530.0,0.0002]
[1737324051867,0.29451349,103540.0,103530.0,0.0002]
[1737324052544,0.39109449,103540.0,103530.0,0.0002]
[1737324052756,0.29451349,103540.0,103530.0,0.0002]